[Event "Titled Tuesday Blitz May 23 Late 2023"]
[White "Adewumi, Tanitoluwa"]
[Black "Doluhanova, Evgeniya"]
[WhiteFideId "30966396"]
[BlackFideId "14112035"]
[WhiteElo "2568"]
[BlackElo "2159"]
[Result "1-0"]
[Round "03"]
[TimeControl "180+2"]
[Date "2023.05.23"]
[WhiteClock "0:00:07"]
[BlackClock "0:00:08"]

1. e4 {[%clk 0:02:52]}  e5 {[%clk 0:02:58]} 2. Nf3 {[%clk 0:02:49]}  Nc6 {[%clk 0:02:58]} 3. Bc4 {[%clk 0:02:42]}  Bc5 {[%clk 0:02:57]} 4. O-O {[%clk 0:02:41]}  Nf6 {[%clk 0:02:57]} 5. d3 {[%clk 0:02:37]}  O-O {[%clk 0:02:56]} 6. Re1 {[%clk 0:02:32]}  a5 {[%clk 0:02:50]} 7. h3 {[%clk 0:02:27]}  d6 {[%clk 0:02:51]} 8. c3 {[%clk 0:02:21]}  h6 {[%clk 0:02:48]} 9. Bb5 {[%clk 0:01:49]}  Ne7 {[%clk 0:02:46]} 10. d4 {[%clk 0:01:45]}  exd4 {[%clk 0:02:45]} 11. cxd4 {[%clk 0:01:46]}  Bb6 {[%clk 0:02:44]} 12. Nc3 {[%clk 0:01:44]}  c6 {[%clk 0:02:44]} 13. Bd3 {[%clk 0:01:41]}  Bc7 {[%clk 0:02:43]} 14. Qe2 {[%clk 0:01:31]}  Ng6 {[%clk 0:02:43]} 15. e5 {[%clk 0:00:51]}  dxe5 {[%clk 0:02:34]} 16. dxe5 {[%clk 0:00:50]}  Nxe5 {[%clk 0:02:30]} 17. Nxe5 {[%clk 0:00:49]}  Bxe5 {[%clk 0:02:30]} 18. Qxe5 {[%clk 0:00:47]}  Qxd3 {[%clk 0:02:30]} 19. Bxh6 {[%clk 0:00:46]}  Qg6 {[%clk 0:02:14]} 20. Bg5 {[%clk 0:00:38]}  Nh7 {[%clk 0:02:11]} 21. Be7 {[%clk 0:00:28]}  Bxh3 {[%clk 0:02:07]} 22. Qg3 {[%clk 0:00:24]}  Qxg3 {[%clk 0:01:44]} 23. fxg3 {[%clk 0:00:25]}  Be6 {[%clk 0:01:44]} 24. Bxf8 {[%clk 0:00:24]}  Nxf8 {[%clk 0:01:44]} 25. Rad1 {[%clk 0:00:24]}  Ng6 {[%clk 0:01:39]} 26. a3 {[%clk 0:00:22]}  Kf8 {[%clk 0:01:39]} 27. Na4 {[%clk 0:00:22]}  b5 {[%clk 0:01:26]} 28. Nc5 {[%clk 0:00:21]}  Bd5 {[%clk 0:01:27]} 29. Nd7+ {[%clk 0:00:20]}  Kg8 {[%clk 0:01:26]} 30. Nb6 {[%clk 0:00:21]}  Rd8 {[%clk 0:01:25]} 31. Nxd5 {[%clk 0:00:21]}  cxd5 {[%clk 0:01:25]} 32. Rd4 {[%clk 0:00:20]}  f6 {[%clk 0:01:23]} 33. Re6 {[%clk 0:00:20]}  Ne5 {[%clk 0:01:14]} 34. Rb6 {[%clk 0:00:17]}  Rc8 {[%clk 0:01:05]} 35. Rxb5 {[%clk 0:00:15]}  Rc1+ {[%clk 0:01:05]} 36. Kh2 {[%clk 0:00:14]}  f5 {[%clk 0:00:59]} 37. Rbxd5 {[%clk 0:00:10]}  Ng4+ {[%clk 0:00:56]} 38. Rxg4 {[%clk 0:00:10]}  fxg4 {[%clk 0:00:56]} 39. Rxa5 {[%clk 0:00:11]}  Rb1 {[%clk 0:00:53]} 40. Rb5 {[%clk 0:00:10]}  Kf7 {[%clk 0:00:51]} 41. b4 {[%clk 0:00:10]}  Ke6 {[%clk 0:00:51]} 42. a4 {[%clk 0:00:10]}  Kd6 {[%clk 0:00:51]} 43. a5 {[%clk 0:00:10]}  Kc6 {[%clk 0:00:51]} 44. Rb6+ {[%clk 0:00:11]}  Kc7 {[%clk 0:00:51]} 45. b5 {[%clk 0:00:10]}  Ra1 {[%clk 0:00:47]} 46. Rc6+ {[%clk 0:00:10]}  Kd7 {[%clk 0:00:42]} 47. a6 {[%clk 0:00:11]}  Ra5 {[%clk 0:00:41]} 48. Rb6 {[%clk 0:00:11]}  Kc8 {[%clk 0:00:36]} 49. Rb7 {[%clk 0:00:11]}  g5 {[%clk 0:00:33]} 50. Rh7 {[%clk 0:00:08]}  Rxb5 {[%clk 0:00:31]} 51. Rh8+ {[%clk 0:00:06]}  Kc7 {[%clk 0:00:08]} 52. a7 {[%clk 0:00:07]} 1-0


[Site "https://www.chess.com"]

[Event "Titled Tuesday Blitz May 23 Late 2023"]
[White "Weinstein, Joshua Ross"]
[Black "ArtemDyachuk"]
[WhiteFideId "30927714"]
[WhiteElo "2330"]
[BlackElo "2567"]
[Result "0-1"]
[Round "03"]
[TimeControl "180+2"]
[Date "2023.05.23"]
[WhiteClock "0:00:17"]
[BlackClock "0:00:17"]

1. e4 {[%clk 0:03:00]}  c6 {[%clk 0:02:54]} 2. Nc3 {[%clk 0:03:01]}  d5 {[%clk 0:02:54]} 3. d4 {[%clk 0:03:02]}  dxe4 {[%clk 0:02:52]} 4. f3 {[%clk 0:03:02]}  Nf6 {[%clk 0:02:53]} 5. Nxe4 {[%clk 0:03:02]}  Bf5 {[%clk 0:02:45]} 6. Ng3 {[%clk 0:02:57]}  Bg6 {[%clk 0:02:44]} 7. h4 {[%clk 0:02:57]}  h6 {[%clk 0:02:39]} 8. N1e2 {[%clk 0:02:52]}  e6 {[%clk 0:02:38]} 9. Bf4 {[%clk 0:02:38]}  Bd6 {[%clk 0:02:34]} 10. Qd2 {[%clk 0:02:35]}  Nd5 {[%clk 0:02:33]} 11. Bxd6 {[%clk 0:02:34]}  Qxd6 {[%clk 0:02:34]} 12. c3 {[%clk 0:02:26]}  Nd7 {[%clk 0:02:32]} 13. Ne4 {[%clk 0:02:23]}  Qe7 {[%clk 0:02:30]} 14. Nf4 {[%clk 0:02:19]}  Bxe4 {[%clk 0:02:17]} 15. fxe4 {[%clk 0:02:18]}  e5 {[%clk 0:02:16]} 16. Nxd5 {[%clk 0:02:12]}  cxd5 {[%clk 0:02:15]} 17. O-O-O {[%clk 0:02:03]}  dxe4 {[%clk 0:02:05]} 18. dxe5 {[%clk 0:02:03]}  O-O-O {[%clk 0:01:59]} 19. Qd4 {[%clk 0:01:51]}  Nxe5 {[%clk 0:01:28]} 20. Qxa7 {[%clk 0:01:46]}  Rxd1+ {[%clk 0:01:26]} 21. Kxd1 {[%clk 0:01:47]}  Rd8+ {[%clk 0:01:26]} 22. Kc2 {[%clk 0:01:37]}  Qd6 {[%clk 0:01:21]} 23. Qa8+ {[%clk 0:01:23]}  Kc7 {[%clk 0:01:20]} 24. Qa5+ {[%clk 0:01:21]}  Kb8 {[%clk 0:01:21]} 25. Be2 {[%clk 0:00:53]}  Qd2+ {[%clk 0:00:55]} 26. Kb3 {[%clk 0:00:52]}  Nc6 {[%clk 0:00:23]} 27. Qb5 {[%clk 0:00:52]}  Qe3 {[%clk 0:00:17]} 28. a4 {[%clk 0:00:23]}  Rd2 {[%clk 0:00:17]} 29. Bc4 {[%clk 0:00:17]}  Nd4+ {[%clk 0:00:17]} 0-1


[Site "https://www.chess.com"]

[Event "Titled Tuesday Blitz May 23 Late 2023"]
[White "Keleberda, Tymur"]
[Black "Fajdetic, Hrvoje"]
[WhiteFideId "14174294"]
[BlackFideId "14501945"]
[WhiteElo "2198"]
[BlackElo "2185"]
[Result "0-1"]
[Round "03"]
[TimeControl "180+2"]
[Date "2023.05.23"]
[WhiteClock "0:00:33"]
[BlackClock "0:00:09"]

1. e4 {[%clk 0:03:00]}  e6 {[%clk 0:02:57]} 2. d4 {[%clk 0:02:59]}  d5 {[%clk 0:02:57]} 3. Nc3 {[%clk 0:02:59]}  dxe4 {[%clk 0:02:57]} 4. Nxe4 {[%clk 0:02:59]}  Nd7 {[%clk 0:02:56]} 5. Nf3 {[%clk 0:02:58]}  Ngf6 {[%clk 0:02:56]} 6. Bd3 {[%clk 0:02:58]}  Nxe4 {[%clk 0:02:56]} 7. Bxe4 {[%clk 0:02:58]}  Nf6 {[%clk 0:02:56]} 8. Bd3 {[%clk 0:02:57]}  c5 {[%clk 0:02:56]} 9. c3 {[%clk 0:02:53]}  cxd4 {[%clk 0:02:56]} 10. Nxd4 {[%clk 0:02:54]}  Bc5 {[%clk 0:02:54]} 11. Nf3 {[%clk 0:02:48]}  Qc7 {[%clk 0:02:41]} 12. O-O {[%clk 0:02:46]}  O-O {[%clk 0:02:39]} 13. Bg5 {[%clk 0:02:43]}  Nd5 {[%clk 0:02:37]} 14. Qc2 {[%clk 0:02:40]}  h6 {[%clk 0:02:35]} 15. Bh4 {[%clk 0:02:38]}  Nf4 {[%clk 0:02:26]} 16. Bg3 {[%clk 0:02:37]}  Bd6 {[%clk 0:02:26]} 17. Nd4 {[%clk 0:02:30]}  a6 {[%clk 0:02:15]} 18. Be4 {[%clk 0:02:20]}  f5 {[%clk 0:02:01]} 19. Bf3 {[%clk 0:02:20]}  e5 {[%clk 0:01:54]} 20. Qb3+ {[%clk 0:02:11]}  Kh8 {[%clk 0:01:50]} 21. Bxf4 {[%clk 0:02:11]}  exd4 {[%clk 0:01:36]} 22. Bxd6 {[%clk 0:02:09]}  Qxd6 {[%clk 0:01:36]} 23. Rad1 {[%clk 0:02:08]}  Be6 {[%clk 0:01:29]} 24. Qc2 {[%clk 0:02:06]}  Rac8 {[%clk 0:01:22]} 25. Bxb7 {[%clk 0:01:55]}  Rc7 {[%clk 0:01:22]} 26. Rxd4 {[%clk 0:01:49]}  Qxd4 {[%clk 0:01:20]} 27. cxd4 {[%clk 0:01:50]}  Rxc2 {[%clk 0:01:19]} 28. d5 {[%clk 0:01:47]}  Rxb2 {[%clk 0:01:11]} 29. dxe6 {[%clk 0:01:39]}  Rxb7 {[%clk 0:01:10]} 30. g3 {[%clk 0:01:36]}  Re7 {[%clk 0:01:06]} 31. Re1 {[%clk 0:01:36]}  f4 {[%clk 0:01:05]} 32. Kg2 {[%clk 0:01:34]}  f3+ {[%clk 0:01:03]} 33. Kh3 {[%clk 0:01:33]}  Rf6 {[%clk 0:01:04]} 34. Rb1 {[%clk 0:01:28]}  Rexe6 {[%clk 0:01:03]} 35. a4 {[%clk 0:01:26]}  Re2 {[%clk 0:01:01]} 36. Kg4 {[%clk 0:01:22]}  Rxf2 {[%clk 0:00:59]} 37. h4 {[%clk 0:01:22]}  Ra2 {[%clk 0:00:54]} 38. Kh5 {[%clk 0:01:21]}  Rxa4 {[%clk 0:00:52]} 39. g4 {[%clk 0:01:21]}  Kh7 {[%clk 0:00:52]} 40. Rb7 {[%clk 0:01:19]}  Rff4 {[%clk 0:00:41]} 41. Ra7 {[%clk 0:00:49]}  f2 {[%clk 0:00:33]} 42. Re7 {[%clk 0:00:35]}  f1=Q {[%clk 0:00:31]} 43. Re6 {[%clk 0:00:36]}  g6+ {[%clk 0:00:17]} 44. Rxg6 {[%clk 0:00:35]}  Rf5+ {[%clk 0:00:16]} 45. Rg5 {[%clk 0:00:33]}  Rxg5+ {[%clk 0:00:10]} 46. hxg5 {[%clk 0:00:33]}  Qh3# {[%clk 0:00:09]} 0-1


[Site "https://www.chess.com"]

[Event "Titled Tuesday Blitz May 23 Late 2023"]
[White "Ibadov, Dashgyn"]
[Black "Kostiukov, Alexandr"]
[WhiteFideId "24107514"]
[BlackFideId "14108100"]
[WhiteElo "2208"]
[BlackElo "2202"]
[Result "1-0"]
[Round "03"]
[TimeControl "180+2"]
[Date "2023.05.23"]
[WhiteClock "0:00:06"]
[BlackClock "0:00:00"]

1. e4 {[%clk 0:03:00]}  c5 {[%clk 0:02:54]} 2. Nf3 {[%clk 0:03:00]}  g6 {[%clk 0:02:54]} 3. c3 {[%clk 0:02:58]}  Bg7 {[%clk 0:02:53]} 4. d4 {[%clk 0:02:59]}  cxd4 {[%clk 0:02:54]} 5. cxd4 {[%clk 0:02:59]}  d5 {[%clk 0:02:55]} 6. e5 {[%clk 0:02:59]}  Nc6 {[%clk 0:02:55]} 7. Bb5 {[%clk 0:02:58]}  Bg4 {[%clk 0:02:55]} 8. Bxc6+ {[%clk 0:02:47]}  bxc6 {[%clk 0:02:54]} 9. h3 {[%clk 0:02:47]}  Bxf3 {[%clk 0:02:53]} 10. Qxf3 {[%clk 0:02:48]}  Nh6 {[%clk 0:02:53]} 11. O-O {[%clk 0:02:45]}  Nf5 {[%clk 0:02:51]} 12. Be3 {[%clk 0:02:45]}  Qb6 {[%clk 0:02:50]} 13. Nc3 {[%clk 0:02:38]}  Qxb2 {[%clk 0:02:40]} 14. Na4 {[%clk 0:02:33]}  Qa3 {[%clk 0:02:39]} 15. Nc5 {[%clk 0:02:30]}  O-O {[%clk 0:02:25]} 16. Rab1 {[%clk 0:01:53]}  Rab8 {[%clk 0:02:11]} 17. Rxb8 {[%clk 0:01:41]}  Rxb8 {[%clk 0:02:10]} 18. e6 {[%clk 0:01:41]}  f6 {[%clk 0:01:52]} 19. Qf4 {[%clk 0:01:20]}  Nd6 {[%clk 0:01:40]} 20. Rc1 {[%clk 0:01:04]}  Qxa2 {[%clk 0:01:38]} 21. Nd7 {[%clk 0:01:02]}  Rb1 {[%clk 0:01:37]} 22. Kh2 {[%clk 0:00:52]}  Rxc1 {[%clk 0:01:32]} 23. Bxc1 {[%clk 0:00:53]}  Qc2 {[%clk 0:01:15]} 24. Ba3 {[%clk 0:00:50]}  g5 {[%clk 0:01:13]} 25. Qg3 {[%clk 0:00:47]}  Qf5 {[%clk 0:00:57]} 26. Bxd6 {[%clk 0:00:40]}  Qxe6 {[%clk 0:00:57]} 27. Bxe7 {[%clk 0:00:20]}  Qxd7 {[%clk 0:00:47]} 28. Qb8+ {[%clk 0:00:21]}  Kf7 {[%clk 0:00:45]} 29. Bc5 {[%clk 0:00:21]}  a5 {[%clk 0:00:37]} 30. Qa8 {[%clk 0:00:21]}  Qc7+ {[%clk 0:00:35]} 31. Kg1 {[%clk 0:00:20]}  h5 {[%clk 0:00:34]} 32. Qa6 {[%clk 0:00:17]}  Bf8 {[%clk 0:00:31]} 33. Bb6 {[%clk 0:00:12]}  Qd6 {[%clk 0:00:25]} 34. Qxa5 {[%clk 0:00:10]}  Qb4 {[%clk 0:00:24]} 35. Qa7+ {[%clk 0:00:09]}  Kg6 {[%clk 0:00:23]} 36. Qb8 {[%clk 0:00:07]}  Bd6 {[%clk 0:00:21]} 37. Qg8+ {[%clk 0:00:03]}  Kf5 {[%clk 0:00:21]} 38. Qh7+ {[%clk 0:00:03]}  Ke6 {[%clk 0:00:18]} 39. Qg8+ {[%clk 0:00:03]}  Kd7 {[%clk 0:00:15]} 40. Qd8+ {[%clk 0:00:03]}  Ke6 {[%clk 0:00:15]} 41. Qe8+ {[%clk 0:00:04]}  Be7 {[%clk 0:00:14]} 42. Bc5 {[%clk 0:00:03]}  Qe1+ {[%clk 0:00:13]} 43. Kh2 {[%clk 0:00:04]}  Kf5 {[%clk 0:00:11]} 44. Qxe7 {[%clk 0:00:04]}  Qxe7 {[%clk 0:00:10]} 45. Bxe7 {[%clk 0:00:05]}  h4 {[%clk 0:00:10]} 46. Bc5 {[%clk 0:00:05]}  Ke4 {[%clk 0:00:09]} 47. g3 {[%clk 0:00:05]}  f5 {[%clk 0:00:09]} 48. gxh4 {[%clk 0:00:05]}  gxh4 {[%clk 0:00:10]} 49. Kg2 {[%clk 0:00:06]}  f4 {[%clk 0:00:10]} 50. f3+ {[%clk 0:00:05]}  Ke3 {[%clk 0:00:10]} 51. Bb6 {[%clk 0:00:06]}  Ke2 {[%clk 0:00:10]} 52. Bc7 {[%clk 0:00:05]}  Ke3 {[%clk 0:00:00]} 53. Be5 {[%clk 0:00:06]} 1-0


[Site "https://www.chess.com"]

[Event "Titled Tuesday Blitz May 23 Late 2023"]
[White "KVAIDAN"]
[Black "Erzhanov, Arman"]
[BlackFideId "4138821"]
[WhiteElo "2295"]
[BlackElo "2138"]
[Result "0-1"]
[Round "03"]
[TimeControl "180+2"]
[Date "2023.05.23"]
[WhiteClock "0:01:56"]
[BlackClock "0:01:43"]

1. f4 {[%clk 0:02:59]}  g6 {[%clk 0:02:57]} 2. Nf3 {[%clk 0:02:58]}  Bg7 {[%clk 0:02:58]} 3. e4 {[%clk 0:02:58]}  c5 {[%clk 0:02:58]} 4. Bc4 {[%clk 0:02:58]}  Nc6 {[%clk 0:02:58]} 5. d3 {[%clk 0:02:59]}  e6 {[%clk 0:02:58]} 6. O-O {[%clk 0:02:59]}  Nge7 {[%clk 0:02:58]} 7. Nc3 {[%clk 0:02:59]}  O-O {[%clk 0:02:58]} 8. Qe1 {[%clk 0:03:00]}  d5 {[%clk 0:02:58]} 9. Bb3 {[%clk 0:03:00]}  Nd4 {[%clk 0:02:57]} 10. Qh4 {[%clk 0:02:57]}  Nxf3+ {[%clk 0:02:46]} 11. Rxf3 {[%clk 0:02:56]}  dxe4 {[%clk 0:02:46]} 12. dxe4 {[%clk 0:02:52]}  Nc6 {[%clk 0:02:43]} 13. Qe1 {[%clk 0:02:50]}  Nd4 {[%clk 0:02:42]} 14. Rd3 {[%clk 0:02:50]}  Qb6 {[%clk 0:02:36]} 15. Bc4 {[%clk 0:02:47]}  Qb4 {[%clk 0:02:31]} 16. Bb3 {[%clk 0:02:31]}  c4 {[%clk 0:02:06]} 17. a3 {[%clk 0:02:31]}  Qc5 {[%clk 0:02:06]} 18. Be3 {[%clk 0:02:15]}  cxd3 {[%clk 0:02:00]} 19. cxd3 {[%clk 0:02:14]}  Qe7 {[%clk 0:01:50]} 20. Bd1 {[%clk 0:02:11]}  b6 {[%clk 0:01:47]} 21. Qf2 {[%clk 0:02:07]}  Rd8 {[%clk 0:01:46]} 22. e5 {[%clk 0:02:06]}  Nf5 {[%clk 0:01:46]} 23. Bf3 {[%clk 0:02:04]}  Bb7 {[%clk 0:01:45]} 24. Ne4 {[%clk 0:02:02]}  Nxe3 {[%clk 0:01:43]} 25. Qxe3 {[%clk 0:02:02]}  Bxe4 {[%clk 0:01:43]} 26. Bxe4 {[%clk 0:02:02]}  Rac8 {[%clk 0:01:44]} 27. Rf1 {[%clk 0:02:02]}  Qc5 {[%clk 0:01:44]} 28. d4 {[%clk 0:01:56]}  Qxd4 {[%clk 0:01:43]} 0-1


[Site "https://www.chess.com"]

[Event "Titled Tuesday Blitz May 23 Late 2023"]
[White "Magallanes, Rey Jomar"]
[Black "gueraumasague"]
[WhiteFideId "5205948"]
[WhiteElo "2292"]
[BlackElo "2553"]
[Result "0-1"]
[Round "03"]
[TimeControl "180+2"]
[Date "2023.05.23"]
[WhiteClock "0:02:14"]
[BlackClock "0:01:50"]

1. e4 {[%clk 0:03:00]}  g6 {[%clk 0:03:00]} 2. Nf3 {[%clk 0:03:01]}  Bg7 {[%clk 0:03:01]} 3. d4 {[%clk 0:03:01]}  c6 {[%clk 0:03:01]} 4. Nc3 {[%clk 0:03:01]}  d5 {[%clk 0:03:01]} 5. e5 {[%clk 0:03:01]}  Bg4 {[%clk 0:03:01]} 6. Be2 {[%clk 0:03:01]}  e6 {[%clk 0:02:59]} 7. h3 {[%clk 0:03:01]}  Bxf3 {[%clk 0:02:59]} 8. Bxf3 {[%clk 0:03:02]}  Nd7 {[%clk 0:02:59]} 9. Be3 {[%clk 0:03:00]}  Ne7 {[%clk 0:02:58]} 10. g4 {[%clk 0:02:57]}  c5 {[%clk 0:02:57]} 11. Nb5 {[%clk 0:02:55]}  Qa5+ {[%clk 0:02:56]} 12. Nc3 {[%clk 0:02:53]}  cxd4 {[%clk 0:02:49]} 13. Bxd4 {[%clk 0:02:53]}  Nc6 {[%clk 0:02:40]} 14. Be3 {[%clk 0:02:49]}  Ndxe5 {[%clk 0:02:37]} 15. Bd2 {[%clk 0:02:49]}  Nd4 {[%clk 0:02:13]} 16. Bg2 {[%clk 0:02:44]}  Nc4 {[%clk 0:02:13]} 17. O-O {[%clk 0:02:27]}  Nxd2 {[%clk 0:02:13]} 18. Qxd2 {[%clk 0:02:28]}  O-O {[%clk 0:02:12]} 19. f4 {[%clk 0:02:24]}  Nb5 {[%clk 0:02:12]} 20. Rad1 {[%clk 0:02:17]}  Nxc3 {[%clk 0:02:09]} 21. f5 {[%clk 0:02:15]}  Qb6+ {[%clk 0:01:55]} 22. Kh1 {[%clk 0:02:14]}  Nxd1 {[%clk 0:01:55]} 23. Re1 {[%clk 0:02:14]}  Nf2+ {[%clk 0:01:54]} 24. Qxf2 {[%clk 0:02:12]}  Qxf2 {[%clk 0:01:53]} 25. Rf1 {[%clk 0:02:13]}  Qxc2 {[%clk 0:01:52]} 26. Rf2 {[%clk 0:02:14]}  Qxf2 {[%clk 0:01:52]} 27. Kh2 {[%clk 0:02:11]}  Be5+ {[%clk 0:01:52]} 28. Kh1 {[%clk 0:02:12]}  Bd4 {[%clk 0:01:52]} 29. Kh2 {[%clk 0:02:13]}  Rac8 {[%clk 0:01:50]} 30. Kh1 {[%clk 0:02:14]}  Qg1# {[%clk 0:01:50]} 0-1


[Site "https://www.chess.com"]

[Event "Titled Tuesday Blitz May 23 Late 2023"]
[White "Spata, German"]
[Black "Bach, Matthias"]
[WhiteFideId "113026"]
[BlackFideId "4603168"]
[WhiteElo "2260"]
[BlackElo "2130"]
[Result "1/2-1/2"]
[Round "03"]
[TimeControl "180+2"]
[Date "2023.05.23"]
[WhiteClock "0:00:05"]
[BlackClock "0:00:10"]

1. Nf3 {[%clk 0:02:58]}  Nf6 {[%clk 0:02:57]} 2. g3 {[%clk 0:02:59]}  c5 {[%clk 0:02:57]} 3. Bg2 {[%clk 0:03:00]}  d5 {[%clk 0:02:57]} 4. Kf1 {[%clk 0:03:00]}  e6 {[%clk 0:02:58]} 5. d3 {[%clk 0:02:59]}  Nc6 {[%clk 0:02:58]} 6. Nbd2 {[%clk 0:02:59]}  Be7 {[%clk 0:02:56]} 7. Kg1 {[%clk 0:02:56]}  O-O {[%clk 0:02:55]} 8. h3 {[%clk 0:02:57]}  h5 {[%clk 0:02:54]} 9. Kh2 {[%clk 0:02:56]}  e5 {[%clk 0:02:53]} 10. e4 {[%clk 0:02:55]}  Nd4 {[%clk 0:02:48]} 11. c3 {[%clk 0:02:53]}  Nxf3+ {[%clk 0:02:39]} 12. Bxf3 {[%clk 0:02:51]}  dxe4 {[%clk 0:02:37]} 13. dxe4 {[%clk 0:02:47]}  h4 {[%clk 0:02:21]} 14. Nc4 {[%clk 0:02:44]}  hxg3+ {[%clk 0:02:19]} 15. fxg3 {[%clk 0:02:45]}  Qc7 {[%clk 0:02:15]} 16. Kg2 {[%clk 0:02:41]}  Be6 {[%clk 0:02:14]} 17. Qe2 {[%clk 0:02:39]}  Rad8 {[%clk 0:02:11]} 18. Bg5 {[%clk 0:02:26]}  Nh7 {[%clk 0:02:02]} 19. Be3 {[%clk 0:02:14]}  f5 {[%clk 0:01:59]} 20. exf5 {[%clk 0:02:11]}  Rxf5 {[%clk 0:01:58]} 21. Be4 {[%clk 0:02:07]}  Bd5 {[%clk 0:01:57]} 22. Bxd5+ {[%clk 0:02:07]}  Rxd5 {[%clk 0:01:56]} 23. Rad1 {[%clk 0:02:05]}  e4 {[%clk 0:01:53]} 24. Rxd5 {[%clk 0:02:02]}  Rxd5 {[%clk 0:01:52]} 25. Rd1 {[%clk 0:02:02]}  Qd7 {[%clk 0:01:48]} 26. Rd2 {[%clk 0:01:51]}  b5 {[%clk 0:01:44]} 27. Na5 {[%clk 0:01:47]}  Rd3 {[%clk 0:01:41]} 28. Nb3 {[%clk 0:01:42]}  Qd5 {[%clk 0:01:38]} 29. Rxd3 {[%clk 0:01:35]}  exd3+ {[%clk 0:01:36]} 30. Qf3 {[%clk 0:01:35]}  Qxf3+ {[%clk 0:01:27]} 31. Kxf3 {[%clk 0:01:35]}  c4 {[%clk 0:01:27]} 32. Nd2 {[%clk 0:01:31]}  a6 {[%clk 0:01:24]} 33. b3 {[%clk 0:01:31]}  cxb3 {[%clk 0:01:22]} 34. axb3 {[%clk 0:01:30]}  a5 {[%clk 0:01:22]} 35. Ke4 {[%clk 0:01:26]}  a4 {[%clk 0:01:14]} 36. bxa4 {[%clk 0:01:26]}  bxa4 {[%clk 0:01:14]} 37. Kxd3 {[%clk 0:01:27]}  a3 {[%clk 0:01:06]} 38. Kc2 {[%clk 0:01:25]}  Nf6 {[%clk 0:00:59]} 39. Kb3 {[%clk 0:01:17]}  Nd5 {[%clk 0:00:58]} 40. Bd4 {[%clk 0:01:15]}  Bd6 {[%clk 0:00:56]} 41. Ne4 {[%clk 0:01:07]}  Be7 {[%clk 0:00:55]} 42. c4 {[%clk 0:01:04]}  Nc7 {[%clk 0:00:38]} 43. Bc5 {[%clk 0:00:54]}  Bxc5 {[%clk 0:00:26]} 44. Nxc5 {[%clk 0:00:54]}  Kf7 {[%clk 0:00:26]} 45. Kxa3 {[%clk 0:00:53]}  Kf6 {[%clk 0:00:26]} 46. Kb4 {[%clk 0:00:49]}  Ke5 {[%clk 0:00:27]} 47. Nd7+ {[%clk 0:00:39]}  Ke4 {[%clk 0:00:24]} 48. Kc5 {[%clk 0:00:26]}  Kf3 {[%clk 0:00:23]} 49. Kc6 {[%clk 0:00:27]}  Ne6 {[%clk 0:00:20]} 50. Kd6 {[%clk 0:00:25]}  Nd8 {[%clk 0:00:19]} 51. Ke7 {[%clk 0:00:14]}  Nc6+ {[%clk 0:00:19]} 52. Kd6 {[%clk 0:00:14]}  Nb4 {[%clk 0:00:18]} 53. Ne5+ {[%clk 0:00:12]}  Kxg3 {[%clk 0:00:17]} 54. Ke6 {[%clk 0:00:13]}  Kxh3 {[%clk 0:00:17]} 55. Kf5 {[%clk 0:00:13]}  Kg3 {[%clk 0:00:16]} 56. c5 {[%clk 0:00:13]}  Kf2 {[%clk 0:00:15]} 57. Ke4 {[%clk 0:00:07]}  g5 {[%clk 0:00:13]} 58. Nd3+ {[%clk 0:00:02]}  Nxd3 {[%clk 0:00:11]} 59. Kxd3 {[%clk 0:00:03]}  g4 {[%clk 0:00:10]} 60. c6 {[%clk 0:00:04]}  g3 {[%clk 0:00:11]} 61. c7 {[%clk 0:00:05]}  g2 {[%clk 0:00:11]} 62. c8=Q {[%clk 0:00:06]}  g1=Q {[%clk 0:00:11]} 63. Qc5+ {[%clk 0:00:05]}  Kf1 {[%clk 0:00:11]} 64. Qxg1+ {[%clk 0:00:05]}  Kxg1 {[%clk 0:00:10]} 1/2-1/2


[Site "https://www.chess.com"]

[Event "Titled Tuesday Blitz May 23 Late 2023"]
[White "Martinez, Ayelen"]
[Black "Bartel, Michal"]
[WhiteFideId "118702"]
[BlackFideId "1119257"]
[WhiteElo "2125"]
[BlackElo "2282"]
[Result "0-1"]
[Round "03"]
[TimeControl "180+2"]
[Date "2023.05.23"]
[WhiteClock "0:00:00"]
[BlackClock "0:01:27"]

1. e4 {[%clk 0:02:48]}  e5 {[%clk 0:02:59]} 2. Nf3 {[%clk 0:02:47]}  Nc6 {[%clk 0:03:00]} 3. Bb5 {[%clk 0:02:46]}  g6 {[%clk 0:03:01]} 4. O-O {[%clk 0:02:46]}  Bg7 {[%clk 0:03:00]} 5. c3 {[%clk 0:02:40]}  d6 {[%clk 0:03:00]} 6. d4 {[%clk 0:02:38]}  Bd7 {[%clk 0:03:00]} 7. Bc4 {[%clk 0:02:32]}  Nge7 {[%clk 0:02:59]} 8. d5 {[%clk 0:02:18]}  Nb8 {[%clk 0:02:59]} 9. b4 {[%clk 0:02:17]}  O-O {[%clk 0:02:58]} 10. Bg5 {[%clk 0:02:15]}  h6 {[%clk 0:02:58]} 11. Bh4 {[%clk 0:02:15]}  g5 {[%clk 0:02:57]} 12. Bg3 {[%clk 0:02:08]}  f5 {[%clk 0:02:57]} 13. exf5 {[%clk 0:02:09]}  Bxf5 {[%clk 0:02:56]} 14. Nbd2 {[%clk 0:02:08]}  Nd7 {[%clk 0:02:56]} 15. Qe2 {[%clk 0:02:06]}  Nf6 {[%clk 0:02:49]} 16. Bb3 {[%clk 0:02:03]}  a5 {[%clk 0:02:36]} 17. a4 {[%clk 0:01:57]}  axb4 {[%clk 0:02:33]} 18. cxb4 {[%clk 0:01:58]}  Nexd5 {[%clk 0:02:26]} 19. Qb5 {[%clk 0:01:57]}  Be6 {[%clk 0:02:19]} 20. Qxb7 {[%clk 0:01:52]}  Rb8 {[%clk 0:02:13]} 21. Qc6 {[%clk 0:01:51]}  Rxb4 {[%clk 0:02:12]} 22. a5 {[%clk 0:01:49]}  Kh8 {[%clk 0:02:08]} 23. a6 {[%clk 0:01:44]}  e4 {[%clk 0:02:03]} 24. a7 {[%clk 0:01:13]}  Qa8 {[%clk 0:02:01]} 25. Qxa8 {[%clk 0:00:57]}  Rxa8 {[%clk 0:02:02]} 26. Ne1 {[%clk 0:00:56]}  Nd7 {[%clk 0:02:00]} 27. Ra5 {[%clk 0:00:52]}  Nc5 {[%clk 0:01:55]} 28. Bxd5 {[%clk 0:00:46]}  Bxd5 {[%clk 0:01:56]} 29. h4 {[%clk 0:00:26]}  Bc3 {[%clk 0:01:47]} 30. hxg5 {[%clk 0:00:10]}  hxg5 {[%clk 0:01:47]} 31. f4 {[%clk 0:00:08]}  Bxd2 {[%clk 0:01:44]} 32. fxg5 {[%clk 0:00:08]}  Kg7 {[%clk 0:01:42]} 33. Nc2 {[%clk 0:00:06]}  Rb2 {[%clk 0:01:39]} 34. Na3 {[%clk 0:00:04]}  Be3+ {[%clk 0:01:32]} 35. Kh1 {[%clk 0:00:02]}  Rh8+ {[%clk 0:01:31]} 36. Bh2 {[%clk 0:00:00]}  Bxg5 {[%clk 0:01:27]} 0-1


[Site "https://www.chess.com"]